bitfinex-derivatives/quotes_SOLF0:USTF0_20241224
["timestamp","ask_amount","ask_price","bid_price","bid_amount"]
[1735065164446,3.1708,196.2,196.11,2.5511]
[1735065164648,3.1708,196.2,196.08,6.2114]
[1735065165852,2.5503,196.18,196.12,2.551]
[1735065166148,3.1708,196.2,196.08,6.2114]
[1735065166551,2.5503,196.18,196.12,2.5508]
[1735065166851,3.1708,196.2,196.08,6.2114]
[1735065167150,23.66310415,196.21,196.08,6.2114]
[1735065167151,3.7,196.19,196.08,6.2114]
[1735065167756,19.96310415,196.25,196.08,6.2114]
[1735065168051,2.5497,196.22,196.08,6.2114]
[1735065168447,2.5497,196.22,196.17,2.5503]
[1735065168952,3.7,196.21,196.17,2.5503]
[1735065169346,3.7,196.2,196.18,2.5501]
[1735065170453,3.7,196.2,196.19,2.55]
[1735065171649,3.7,196.2,196.08,6.2114]
[1735065172051,3.7,196.2,196.18,2.5501]
[1735065172352,3.7,196.2,196.08,6.2114]
[1735065172752,3.056,196.27,196.11,19.96310415]
[1735065172958,3.7,196.26,196.12,3.0368]
[1735065173146,3.7,196.25,196.12,3.0368]
[1735065173355,53.0,196.28,196.12,3.0368]
[1735065173551,3.7,196.27,196.12,3.0368]
[1735065174552,19.96310415,196.26,196.12,3.0368]
[1735065175051,2.5497,196.22,196.16,2.5503]
[1735065175256,3.7,196.21,196.16,2.5503]
[1735065175557,3.7,196.21,196.17,2.5503]
[1735065175852,3.7,196.21,196.12,3.0368]
[1735065176056,3.7,196.21,196.18,2.5501]
[1735065176852,2.5499,196.2,196.12,3.0368]
[1735065178157,3.7,196.21,196.17,2.5502]
[1735065178956,6.2498,196.21,196.17,2.5502]
[1735065180756,6.2498,196.21,196.18,2.5501]
[1735065182555,3.7,196.21,196.19,2.55]
[1735065182857,3.7,196.21,196.12,3.0368]
[1735065183054,3.7,196.21,196.19,2.55]
[1735065187453,3.7,196.22,196.12,3.0368]
[1735065188156,3.7,196.22,196.21,2.5498]
[1735065188559,53.0,196.28,196.14,12.48265961]
[1735065188755,53.0,196.28,196.12,6.7368]
[1735065188756,6.2488,196.29,196.17,12.48265961]
[1735065188957,3.7,196.28,196.18,6.5004]
[1735065189854,2.5488,196.29,196.18,6.5004]
[1735065190160,3.7,196.28,196.18,6.5004]
[1735065190552,3.7,196.28,196.25,2.5492]
[1735065190760,3.7,196.28,196.18,6.5004]
[1735065190962,15.03105961,196.32,196.28,2.5488]
[1735065191155,3.7,196.3,196.2,12.48265961]
[1735065191359,3.7,196.3,196.21,3.1497]
[1735065192354,3.7,196.3,196.27,2.549]
[1735065192655,3.7,196.3,196.21,3.1497]
[1735065193156,3.7,196.3,196.27,2.549]
[1735065194458,3.2636,196.34,196.21,3.1497]
[1735065194757,3.7,196.33,196.21,3.1497]
[1735065194958,12.48265961,196.35,196.23,12.48265961]
[1735065195160,3.1203,196.4,196.23,12.48265961]
[1735065195161,3.7,196.33,196.23,12.48265961]
[1735065195372,3.7,196.33,196.32,2.5483]
[1735065195554,2.5479,196.36,196.23,12.48265961]
[1735065195760,3.7,196.36,196.33,2.5481]
[1735065196256,2.5474,196.4,196.37,2.5477]
[1735065196461,3.7,196.39,196.37,2.5477]
[1735065196959,12.48265961,196.41,196.37,2.5477]
[1735065196960,2.5473,196.4,196.37,2.5477]
[1735065197163,6.2473,196.4,196.37,2.5477]
[1735065198066,3.7,196.4,196.37,2.5477]
[1735065198567,6.2474,196.4,196.35,2.5479]
[1735065198756,3.7,196.4,196.3,3.1236]
[1735065199259,12.48265961,196.38,196.3,3.1236]
[1735065199961,2.5478,196.37,196.32,2.5483]
[1735065200265,2.5478,196.37,196.3,3.1236]
[1735065200666,2.5478,196.37,196.32,2.5483]
[1735065200861,12.48265961,196.38,196.27,6.421]
[1735065201066,3.7,196.4,196.27,3.1809]
[1735065201370,15.58585961,196.39,196.27,3.1809]
[1735065201960,12.48265961,196.36,196.27,3.1809]
[1735065202361,12.48265961,196.36,196.27,5.7299]
[1735065202564,12.48265961,196.33,196.25,3.3319]
[1735065202861,2.5487,196.3,196.25,3.3319]
[1735065203058,2.5487,196.3,196.26,2.549]
[1735065203457,2.549,196.28,196.23,2.5494]
[1735065203656,2.549,196.28,196.2,3.2197]
[1735065203958,12.48265961,196.3,196.2,3.2197]
[1735065204164,2.5492,196.26,196.2,3.2197]
[1735065204368,6.2492,196.26,196.2,3.2197]
[1735065204563,6.2492,196.26,196.21,2.5497]
[1735065205167,6.2492,196.26,196.2,3.2197]
[1735065205469,6.2492,196.26,196.22,2.5496]
[1735065205766,6.2492,196.26,196.2,3.2197]
[1735065206357,3.7,196.26,196.2,3.2197]
[1735065206563,3.7,196.26,196.21,12.48265961]
[1735065207365,3.7,196.26,196.25,2.5492]
[1735065213369,3.7,196.33,196.3,2.5485]
[1735065213561,2.548,196.35,196.21,12.48265961]
[1735065213767,3.7,196.34,196.31,2.5484]
[1735065214167,6.2481,196.34,196.31,2.5484]
[1735065214773,3.7,196.34,196.31,2.5484]
[1735065214973,3.7,196.34,196.32,2.5483]
[1735065215273,3.7,196.34,196.21,12.48265961]
[1735065215475,3.7,196.34,196.31,2.5484]
[1735065215977,3.7,196.34,196.21,12.48265961]
[1735065216274,3.7,196.34,196.24,12.48265961]
[1735065216469,3.7,196.36,196.25,6.1676]
[1735065216671,3.1032,196.39,196.34,2.548]
[1735065216980,3.7,196.38,196.27,12.48265961]
[1735065217172,3.7,196.38,196.28,3.0828]
[1735065217677,3.7,196.38,196.35,2.5478]
[1735065218866,3.7,196.38,196.28,3.0828]
[1735065219475,3.7,196.38,196.33,2.548]
[1735065219673,3.7,196.38,196.28,3.0828]
[1735065220275,2.5478,196.36,196.32,2.5482]
[1735065220877,3.7,196.38,196.28,3.0828]
[1735065221073,2.5477,196.37,196.33,2.5481]
[1735065221273,3.7,196.39,196.28,3.0828]
[1735065221674,2.5474,196.4,196.35,2.5478]
[1735065221874,6.2474,196.4,196.28,3.0828]
[1735065222270,2.5474,196.39,196.35,2.5479]
[1735065222572,3.7,196.4,196.3,12.48265961]
[1735065223575,3.7,196.4,196.37,2.5476]
[1735065223779,3.7,196.4,196.3,12.48265961]
[1735065224185,3.7,196.4,196.37,2.5476]
[1735065225980,6.2474,196.4,196.36,2.5478]
[1735065226286,3.7,196.4,196.36,2.5478]
[1735065226676,6.2473,196.4,196.36,2.5478]
[1735065228585,6.2473,196.4,196.37,2.5476]
[1735065229291,3.0213,196.45,196.34,12.48265961]
[1735065229482,3.7,196.45,196.35,6.2798]
[1735065229787,3.7,196.45,196.42,2.5469]
[1735065230291,2.5465,196.46,196.42,2.5469]
[1735065230589,3.7,196.47,196.37,12.48265961]
[1735065231190,3.7,196.47,196.45,2.5466]
[1735065231990,3.7,196.47,196.43,2.5468]
[1735065232184,3.7,196.47,196.37,12.48265961]
[1735065232989,6.2465,196.47,196.37,12.48265961]
[1735065233391,12.48265961,196.45,196.36,3.0481]
[1735065233588,12.48265961,196.42,196.28,33.62904347]
[1735065233782,3.7,196.41,196.29,9.8318]
[1735065233990,2.5475,196.39,196.35,2.5478]
[1735065235591,2.5475,196.39,196.29,9.8318]
[1735065235889,3.7,196.42,196.34,12.48265961]
[1735065238588,3.7,196.42,196.31,12.48265961]
[1735065239497,3.7,196.42,196.39,2.5473]
[1735065240894,6.2469,196.43,196.39,2.5473]
[1735065241593,12.48265961,196.48,196.34,12.48265961]
[1735065241793,3.7,196.45,196.34,12.48265961]
[1735065242096,3.7,196.45,196.44,2.5468]
[1735065243093,2.5464,196.47,196.44,2.5468]
[1735065243298,2.5464,196.47,196.38,6.2082]
[1735065243495,2.5464,196.47,196.43,2.5469]
[1735065243799,2.5464,196.47,196.38,9.5405]
[1735065244397,3.2115,196.51,196.38,9.5405]
[1735065244601,5.7784553,196.52,196.43,12.48265961]
[1735065244795,3.7,196.52,196.43,12.48265961]
[1735065244999,6.2458,196.52,196.48,2.5462]
[1735065245197,6.2458,196.52,196.43,12.48265961]
[1735065245198,3.7,196.52,196.43,12.48265961]
[1735065245496,2.5459,196.51,196.47,2.5463]
[1735065245697,12.48265961,196.56,196.43,12.48265961]
[1735065245906,3.7,196.54,196.43,12.48265961]
[1735065246597,2.5458,196.52,196.46,2.5465]
[1735065246803,2.5458,196.52,196.43,12.48265961]
[1735065247307,2.5459,196.51,196.47,2.5464]
[1735065247602,3.7,196.54,196.43,12.48265961]
[1735065248405,2.5458,196.52,196.47,2.5463]
[1735065249405,2.5458,196.52,196.43,12.48265961]
[1735065249406,3.7,196.52,196.43,12.48265961]
[1735065249811,3.7,196.55,196.52,2.5456]
[1735065249997,3.7,196.55,196.46,12.48265961]
[1735065250197,3.7,196.55,196.47,3.046]
[1735065250708,52.37682082,196.61,196.47,3.046]
[1735065250904,3.7,196.6,196.48,6.5919]
[1735065251209,3.7,196.6,196.57,2.5451]
[1735065251398,3.7,196.6,196.49,12.48265961]
[1735065252007,3.7,196.6,196.48,6.5919]
[1735065252008,2.545,196.58,196.48,6.5919]
[1735065252308,12.48265961,196.59,196.48,6.5919]
[1735065252807,12.48265961,196.59,196.48,3.2862]
[1735065253204,2.5456,196.54,196.5,2.546]
[1735065253410,6.2456,196.54,196.48,3.2862]
[1735065253608,3.7,196.54,196.48,3.2862]
[1735065256707,3.7,196.56,196.48,3.2862]
[1735065257109,3.7,196.59,196.49,12.48265961]
[1735065257611,3.7,196.59,196.52,2.5457]
[1735065257811,2.5454,196.56,196.48,3.2862]
[1735065258013,16.18265961,196.59,196.48,3.2862]
[1735065258711,2.5455,196.55,196.48,3.2862]
[1735065259114,2.5457,196.53,196.49,2.5461]
[1735065259315,3.68,196.53,196.43,12.48265961]
[1735065259509,3.68,196.53,196.42,3.0532]
[1735065259711,2.546,196.51,196.42,3.0532]
[1735065260015,16.16265961,196.53,196.42,3.0532]
[1735065260216,2.5465,196.47,196.4,2.5472]
[1735065260517,3.68,196.46,196.37,15.78825961]
[1735065261416,3.68,196.46,196.4,12.48265961]
[1735065261613,3.68,196.46,196.45,2.5467]
[1735065261811,3.68,196.46,196.37,3.3056]
[1735065263412,3.68,196.46,196.38,2.5474]
[1735065263709,3.68,196.46,196.37,3.3056]
[1735065263710,2.5469,196.43,196.37,3.3056]
[1735065263911,2.5469,196.43,196.38,2.5475]
[1735065264312,2.5469,196.43,196.37,3.3056]
[1735065265319,2.5468,196.44,196.39,2.5473]
[1735065267510,2.5471,196.42,196.37,2.5476]
[1735065267717,12.48265961,196.45,196.37,2.5476]
[1735065268019,12.48265961,196.45,196.32,12.48265961]
[1735065268320,2.5471,196.42,196.38,2.5475]
[1735065268719,2.5468,196.44,196.4,2.5473]
[1735065269115,2.5468,196.44,196.32,12.48265961]
[1735065269318,2.5467,196.45,196.41,2.5472]
[1735065269519,3.68,196.45,196.35,12.48265961]
[1735065270817,6.2267,196.45,196.35,12.48265961]
[1735065271024,6.2267,196.45,196.41,2.5471]
[1735065271923,2.547,196.43,196.35,12.48265961]
[1735065272123,3.68,196.45,196.32,12.48265961]
[1735065273423,2.547,196.43,196.39,2.5474]
[1735065273924,3.68,196.45,196.32,12.48265961]
[1735065274226,2.5471,196.42,196.38,2.5475]
[1735065275420,12.48265961,196.43,196.31,6.2771]
[1735065276219,2.5476,196.38,196.34,2.5481]
[1735065276427,6.2476,196.38,196.34,2.5481]
[1735065276727,3.7,196.38,196.31,6.2771]
[1735065277223,3.7,196.41,196.32,12.48265961]
[1735065277921,3.7,196.41,196.39,2.5474]
[1735065278628,3.7,196.42,196.39,2.5474]
[1735065278820,11.66945847,196.42,196.39,2.5474]
[1735065280228,7.96945847,196.4,196.34,7.96945847]
[1735065280433,2.5474,196.39,196.36,2.5478]
[1735065281128,7.96945847,196.38,196.31,3.2627]
[1735065281830,2.5478,196.37,196.33,2.5481]
[1735065282030,3.7,196.36,196.33,2.5481]
[1735065282628,6.2478,196.36,196.33,2.5481]
[1735065283029,6.2478,196.36,196.31,3.2627]
[1735065283229,6.2478,196.36,196.32,2.5482]
[1735065284831,2.548,196.35,196.32,2.5482]
[1735065285627,11.66945847,196.36,196.31,2.5484]
[1735065285827,2.5481,196.34,196.31,2.5484]
[1735065286232,11.66945847,196.36,196.31,2.5484]
[1735065286424,11.66945847,196.36,196.3,2.5486]
[1735065287330,2.5482,196.34,196.3,2.5486]
[1735065288031,2.5482,196.34,196.28,7.96945847]
[1735065288230,2.5482,196.34,196.31,2.5484]
[1735065292129,11.66945847,196.36,196.28,7.96945847]
[1735065292329,31.34077848,196.47,196.32,7.96945847]
[1735065292528,7.96945847,196.42,196.34,7.96945847]
[1735065292735,3.68,196.41,196.39,2.5473]
[1735065293043,3.68,196.41,196.36,7.96945847]
[1735065293836,3.68,196.41,196.37,2.5476]
[1735065294035,3.68,196.41,196.36,7.96945847]
[1735065294243,7.96945847,196.44,196.38,7.96945847]
[1735065294437,11.64945847,196.44,196.41,2.5471]
[1735065295434,7.96945847,196.42,196.39,2.5473]
[1735065295635,7.96945847,196.42,196.36,7.96945847]
[1735065296436,6.2269,196.44,196.37,2.5476]
[1735065296738,7.96945847,196.43,196.36,7.96945847]
[1735065297441,7.96945847,196.43,196.41,2.5471]
[1735065302436,6.2268,196.44,196.41,2.5471]
[1735065303939,2.5472,196.41,196.38,2.5474]
[1735065304145,7.96945847,196.43,196.35,7.96945847]
[1735065304647,2.5471,196.42,196.39,2.5474]
[1735065309547,7.96945847,196.41,196.29,5.0974]
[1735065309749,7.96945847,196.37,196.31,7.96945847]
[1735065310053,3.68,196.36,196.34,2.548]
[1735065310943,2.548,196.35,196.31,2.5483]
[1735065311147,2.548,196.35,196.29,7.96945847]
[1735065311644,2.548,196.35,196.31,2.5484]
[1735065312254,2.5481,196.34,196.29,10.51805847]
[1735065312447,2.5481,196.34,196.29,2.5486]
[1735065312648,7.96945847,196.35,196.29,2.5486]
[1735065312945,2.5482,196.33,196.29,2.5486]
[1735065313345,2.5482,196.33,196.27,7.96945847]
[1735065313649,2.5481,196.34,196.3,2.5486]
[1735065313959,3.68,196.36,196.29,7.96945847]
[1735065314148,11.64945847,196.36,196.29,7.96945847]
[1735065314355,2.548,196.35,196.31,2.5484]
[1735065314954,2.5482,196.33,196.3,2.5485]
[1735065315260,7.96945847,196.34,196.28,7.96945847]
[1735065315555,7.96945847,196.34,196.26,3.1314]
[1735065315755,7.96945847,196.3,196.23,7.96945847]
[1735065315956,3.68,196.29,196.23,7.96945847]
[1735065316156,6.2288,196.29,196.25,2.5492]
[1735065316756,2.549,196.27,196.23,2.5494]
[1735065317861,2.549,196.27,196.2,14.39585847]
[1735065317862,2.549,196.27,196.24,2.5494]
[1735065320061,10.51835847,196.28,196.24,2.5494]
[1735065320261,3.68,196.28,196.26,2.549]
[1735065320655,7.96945847,196.3,196.26,2.549]
[1735065320656,10.51815847,196.3,196.26,2.549]
[1735065320865,3.68,196.29,196.26,2.549]
[1735065322868,2.5484,196.32,196.24,7.96945847]
[1735065323161,3.68,196.31,196.24,7.96945847]
[1735065323365,7.96945847,196.34,196.3,2.5485]
[1735065323567,3.68,196.33,196.26,7.96945847]
[1735065324463,11.64945847,196.34,196.26,7.96945847]
[1735065324665,11.64945847,196.34,196.31,2.5484]
[1735065324968,11.64945847,196.34,196.28,7.96945847]
[1735065325167,3.68,196.34,196.33,2.5482]
[1735065326471,3.68,196.35,196.34,2.5479]
[1735065327766,6.228,196.35,196.31,2.5485]
[1735065327968,7.96945847,196.34,196.27,7.96945847]
[1735065328470,7.96945847,196.4,196.33,7.96945847]
[1735065329175,2.5475,196.39,196.33,7.96945847]
[1735065329367,7.96945847,196.4,196.33,7.96945847]
[1735065329568,7.96945847,196.4,196.35,2.5479]
[1735065329768,7.96945847,196.4,196.33,7.96945847]
[1735065330174,3.68,196.41,196.35,7.96945847]
[1735065331580,3.68,196.41,196.39,2.5474]
[1735065331873,14.19655847,196.42,196.39,2.5474]
[1735065332073,14.19655847,196.42,196.38,2.5475]
[1735065332276,7.96945847,196.4,196.38,2.5475]
[1735065332576,7.96945847,196.4,196.33,7.96945847]
[1735065333477,3.68,196.42,196.41,2.5472]
[1735065333873,7.96945847,196.43,196.41,2.5472]
[1735065334068,3.68,196.42,196.41,2.5472]
[1735065334273,3.68,196.42,196.32,2.5483]
[1735065334479,2.5478,196.36,196.28,11.17755847]
[1735065334673,7.96945847,196.35,196.28,11.17755847]
[1735065334873,7.96945847,196.35,196.32,2.5482]
[1735065335273,7.96945847,196.35,196.28,11.17755847]
[1735065335570,2.5481,196.34,196.28,11.17755847]
[1735065335776,3.68,196.36,196.28,11.17755847]
[1735065335777,7.96945847,196.33,196.28,3.2081]
[1735065336173,10.51795847,196.31,196.23,11.05415847]
[1735065337075,10.51795847,196.31,196.27,2.5489]
[1735065338583,3.68,196.3,196.27,2.5489]
[1735065339579,7.96945847,196.29,196.23,3.0847]
[1735065339780,7.96945847,196.27,196.21,3.292]
[1735065341383,10.51845847,196.27,196.23,2.5495]
[1735065342680,7.96945847,196.27,196.24,2.5494]
[1735065347386,3.68,196.29,196.23,7.96945847]
[1735065347586,10.51815847,196.3,196.23,7.96945847]
[1735065347785,14.19815847,196.3,196.23,7.96945847]
[1735065348401,11.64945847,196.3,196.27,2.549]
[1735065349191,7.96945847,196.3,196.27,2.549]
[1735065349396,11.64945847,196.3,196.27,2.549]
[1735065349697,10.51835847,196.28,196.24,2.5493]
[1735065349894,11.64945847,196.3,196.23,7.96945847]
[1735065350287,11.64945847,196.3,196.27,2.5489]
[1735065351393,14.19815847,196.3,196.27,2.5489]
[1735065351792,14.19815847,196.3,196.26,2.5491]
[1735065352694,7.96945847,196.28,196.25,2.5492]
[1735065353492,10.51835847,196.28,196.25,2.5492]
[1735065357100,7.96945847,196.28,196.25,2.5492]
[1735065357801,10.51835847,196.28,196.25,2.5492]
[1735065358199,2.5483,196.33,196.3,2.5486]
[1735065358396,14.19775847,196.33,196.3,2.5486]
[1735065358601,3.68,196.32,196.26,7.96945847]
[1735065359501,3.68,196.32,196.3,2.5486]
[1735065361697,3.68,196.32,196.26,7.96945847]
[1735065361899,7.96945847,196.31,196.24,7.96945847]
[1735065362495,7.96945847,196.31,196.29,2.5487]
[1735065364713,7.96945847,196.31,196.21,3.292]
[1735065364894,7.96945847,196.27,196.21,11.26145847]
[1735065365096,7.96945847,196.29,196.21,11.26145847]
[1735065365293,10.51825847,196.29,196.23,2.5495]
[1735065365603,10.51825847,196.29,196.21,11.26145847]
[1735065365803,7.96945847,196.29,196.21,11.26145847]
[1735065365991,7.96945847,196.29,196.24,2.5493]
[1735065366198,7.96945847,196.25,196.16,3.2466]
[1735065366400,3.68,196.25,196.2,7.96945847]
[1735065366701,3.2115,196.35,196.24,7.96945847]
[1735065366900,3.68,196.34,196.28,7.96945847]
[1735065367102,3.68,196.34,196.29,2.5486]
[1735065367299,3.68,196.34,196.28,7.96945847]
[1735065367500,7.96945847,196.33,196.26,7.96945847]
[1735065367802,3.68,196.34,196.28,7.96945847]
[1735065368403,3.68,196.34,196.31,2.5484]
[1735065368802,7.96945847,196.33,196.26,7.96945847]
[1735065369000,2.5485,196.32,196.28,2.5488]
[1735065369205,7.96945847,196.31,196.24,7.96945847]
[1735065370209,10.51805847,196.31,196.27,2.549]
[1735065370507,7.96945847,196.31,196.24,7.96945847]
[1735065370913,7.96945847,196.29,196.25,2.5492]
[1735065371099,7.96945847,196.29,196.22,7.96945847]
[1735065371100,3.68,196.28,196.22,7.96945847]
[1735065371407,3.68,196.28,196.17,21.14638386]
[1735065371609,3.68,196.28,196.23,7.96945847]
[1735065371911,7.96945847,196.27,196.24,2.5493]
[1735065372309,7.96945847,196.27,196.19,7.96945847]
[1735065372608,2.5491,196.26,196.22,2.5495]
[1735065373002,7.96945847,196.27,196.19,7.96945847]
[1735065373208,10.51845847,196.27,196.19,7.96945847]
[1735065373600,7.96945847,196.27,196.16,3.2466]
[1735065373905,7.96945847,196.25,196.15,3.123]
[1735065374108,7.96945847,196.23,196.16,7.96945847]
[1735065374412,3.68,196.22,196.16,7.96945847]
[1735065374610,3.68,196.22,196.15,3.123]
[1735065374807,3.68,196.22,196.16,7.96945847]
[1735065375310,3.68,196.22,196.18,2.5501]
[1735065375810,3.68,196.22,196.19,2.55]
[1735065376803,3.68,196.22,196.17,7.96945847]
[1735065377007,7.96945847,196.29,196.21,7.96945847]
[1735065377202,7.96945847,196.29,196.23,7.96945847]
[1735065377203,3.68,196.28,196.23,7.96945847]
[1735065377910,3.68,196.28,196.21,7.96945847]
[1735065379217,7.96945847,196.29,196.21,7.96945847]
[1735065379408,6.2289,196.28,196.24,2.5493]
[1735065379612,7.96945847,196.27,196.24,2.5493]
[1735065380208,7.96945847,196.25,196.15,3.123]
[1735065380412,7.96945847,196.23,196.15,3.123]
[1735065380614,7.96945847,196.2,196.13,21.14638386]
[1735065380919,3.66,196.19,196.13,21.14638386]
[1735065381306,3.66,196.19,196.15,2.5505]
[1735065381504,7.96945847,196.18,196.15,2.5505]
[1735065382515,7.96945847,196.18,196.12,11.02235847]
[1735065382912,7.96945847,196.18,196.09,24.28558386]
[1735065382913,7.96945847,196.16,196.1,7.96945847]
[1735065383116,7.96945847,196.16,196.09,3.1392]
[1735065383320,7.96945847,196.14,196.05,21.14638386]
[1735065383621,10.52035847,196.12,196.07,2.5516]
[1735065383917,7.96945847,196.1,196.05,21.14638386]
[1735065384125,3.66,196.09,196.02,30.90495174]
[1735065384421,3.66,196.08,196.06,2.5517]
[1735065384623,3.66,196.08,196.02,30.90495174]
[1735065384820,12.49431827,196.16,196.03,12.49431827]
[1735065385120,3.66,196.15,196.03,12.49431827]
[1735065385521,3.66,196.15,196.12,2.5509]
[1735065392815,3.66,196.15,196.06,12.49431827]
[1735065393622,12.49431827,196.22,196.09,12.49431827]
[1735065393822,3.66,196.21,196.1,3.0864]
[1735065394023,3.66,196.21,196.1,6.3332]
[1735065394226,12.49431827,196.22,196.12,12.49431827]
[1735065394428,3.66,196.21,196.12,12.49431827]
[1735065394631,12.49431827,196.22,196.2,2.5499]
[1735065394925,3.66,196.21,196.2,2.5499]
[1735065395122,3.66,196.21,196.14,2.5506]
[1735065395328,3.66,196.21,196.11,3.2975]
[1735065395824,3.66,196.21,196.15,2.5505]
[1735065396423,12.49431827,196.19,196.14,2.5506]
[1735065397427,2.5502,196.18,196.15,2.5505]
[1735065398128,12.49431827,196.19,196.11,3.2975]
[1735065398330,2.5503,196.17,196.13,2.5508]
[1735065399132,15.04431827,196.19,196.15,2.5504]
[1735065399326,15.04431827,196.19,196.11,3.2975]
[1735065399831,12.49431827,196.19,196.11,3.2975]
[1735065400426,3.66,196.19,196.11,15.79181827]
[1735065401521,3.66,196.21,196.19,2.5499]
[1735065402131,3.66,196.21,196.2,2.5499]
[1735065402625,3.66,196.21,196.11,15.79181827]
[1735065402626,3.66,196.21,196.19,2.55]
[1735065404425,3.66,196.21,196.11,15.79181827]
[1735065404628,3.66,196.21,196.18,2.5501]
[1735065405727,2.5496,196.22,196.18,2.5501]
[1735065405931,3.66,196.21,196.18,2.5501]
[1735065406431,3.1393,196.25,196.11,15.79181827]
[1735065406634,28.19517848,196.32,196.14,12.49431827]
[1735065406835,12.49431827,196.29,196.14,12.49431827]
[1735065407432,2.5491,196.26,196.14,12.49431827]
[1735065408536,2.5491,196.26,196.23,2.5495]
[1735065408833,3.66,196.28,196.23,2.5495]
[1735065409034,2.549,196.27,196.23,2.5495]
[1735065409235,2.549,196.27,196.24,2.5493]
[1735065409430,3.66,196.28,196.15,5.1011]
[1735065409635,16.15431827,196.29,196.17,12.49431827]
[1735065409937,16.15431827,196.29,196.18,6.1209]
[1735065410327,16.15431827,196.29,196.19,3.1599]
[1735065411434,16.15431827,196.29,196.26,2.5491]
[1735065412336,18.70301827,196.29,196.26,2.5491]
[1735065412838,16.15431827,196.29,196.26,2.5491]
[1735065413540,3.66,196.29,196.27,2.549]
[1735065413738,3.66,196.29,196.19,3.1599]
[1735065414442,2.5489,196.28,196.19,3.1599]
[1735065414839,2.5489,196.28,196.24,2.5493]
[1735065415742,2.5489,196.28,196.25,2.5492]
[1735065417539,16.15431827,196.29,196.26,2.5491]
[1735065418139,7.98209918,196.28,196.26,2.5491]
[1735065422639,2.5485,196.31,196.28,2.5488]
[1735065422946,7.98209918,196.3,196.22,7.98209918]
[1735065423152,7.98209918,196.3,196.19,3.1599]
[1735065423153,7.98209918,196.28,196.2,7.98209918]
[1735065423944,7.98209918,196.28,196.22,2.5496]
[1735065424148,7.98209918,196.26,196.19,3.1599]
[1735065424350,7.98209918,196.2,196.18,6.1209]
[1735065424650,11.64209918,196.2,196.17,2.5502]
[1735065424840,7.98209918,196.17,196.12,6.4751]
[1735065425152,7.98209918,196.17,196.12,3.1647]
[1735065425442,7.98209918,196.15,196.12,3.1647]
[1735065425748,7.98209918,196.15,196.13,2.5507]
[1735065425949,3.66,196.14,196.08,3.2463]
[1735065426151,6.2107,196.14,196.09,2.5513]
[1735065426348,3.66,196.14,196.08,3.2463]
[1735065427550,3.66,196.14,196.12,2.5508]
[1735065427848,3.66,196.14,196.08,3.2463]
[1735065428048,3.66,196.14,196.09,2.5512]
[1735065428347,3.66,196.14,196.08,3.2463]
[1735065429250,3.66,196.14,196.13,2.5508]
[1735065433451,3.66,196.17,196.16,2.5504]
[1735065434046,3.66,196.17,196.15,2.5505]
[1735065435348,6.2103,196.17,196.13,2.5508]
[1735065435543,3.66,196.17,196.08,3.2463]
[1735065436248,3.66,196.17,196.08,15.73787295]
[1735065436953,3.66,196.19,196.08,15.73787295]
[1735065437848,3.66,196.19,196.08,3.2463]
[1735065438847,2.5503,196.18,196.08,3.2463]
[1735065439248,2.5503,196.18,196.11,2.5511]
[1735065439453,3.66,196.19,196.09,12.49157295]
[1735065439749,3.66,196.18,196.09,12.49157295]
[1735065439953,3.66,196.2,196.12,12.49157295]
[1735065440153,3.66,196.2,196.13,3.0317]
[1735065440653,3.66,196.21,196.13,3.0317]
[1735065440854,3.66,196.21,196.19,2.5499]
[1735065441052,3.66,196.21,196.13,3.0317]